[Event "Betsys MČR v online bleskovém šachu 2021"]
[Site "Chess.com"]
[Date "2021.04.17"]
[Round "4"]
[White "Milan_Jancek"]
[Black "feela1"]
[Result "1-0"]
[WhiteElo "1820"]
[BlackElo "1482"]
[TimeControl "180+1"]
[EndTime "9:36:41 PDT"]
[Termination "Uživatel Milan_Jancek zvítězil na čas"]

1. c4 {[%clk 0:03:00.9]} 1... e5 {[%clk 0:02:58.7]} 2. Nc3 {[%clk 0:03:00.9]}
2... Nf6 {[%clk 0:02:56.2]} 3. g3 {[%clk 0:03:01.1]} 3... Bc5 {[%clk 0:02:54.3]}
4. Bg2 {[%clk 0:03:01.6]} 4... c6 {[%clk 0:02:52.6]} 5. d3 {[%clk 0:03:02.1]}
5... O-O {[%clk 0:02:50.9]} 6. e4 {[%clk 0:03:02.2]} 6... d6 {[%clk 0:02:48]} 7.
Nge2 {[%clk 0:03:02.3]} 7... Bg4 {[%clk 0:02:46.8]} 8. O-O {[%clk 0:03:02.3]}
8... Nbd7 {[%clk 0:02:44.9]} 9. h3 {[%clk 0:03:02.3]} 9... Bh5 {[%clk
0:02:42.9]} 10. Be3 {[%clk 0:02:59.4]} 10... Bxe3 {[%clk 0:02:34.1]} 11. fxe3
{[%clk 0:02:59.3]} 11... Rb8 {[%clk 0:02:27.8]} 12. Qd2 {[%clk 0:02:59.5]} 12...
Re8 {[%clk 0:02:23.9]} 13. g4 {[%clk 0:02:53.7]} 13... Bg6 {[%clk 0:02:23.3]}
14. Ng3 {[%clk 0:02:54]} 14... h6 {[%clk 0:02:21.3]} 15. Rf2 {[%clk 0:02:50.6]}
15... Nb6 {[%clk 0:02:15.6]} 16. b3 {[%clk 0:02:48.2]} 16... d5 {[%clk
0:02:14.6]} 17. exd5 {[%clk 0:02:47.2]} 17... cxd5 {[%clk 0:02:13.9]} 18. Rd1
{[%clk 0:02:24.9]} 18... dxc4 {[%clk 0:02:10.2]} 19. dxc4 {[%clk 0:02:24.5]}
19... Qxd2 {[%clk 0:02:08.5]} 20. Rfxd2 {[%clk 0:02:23.4]} 20... Nbd7 {[%clk
0:02:03.2]} 21. Rxd7 {[%clk 0:02:13]} 21... Nxd7 {[%clk 0:02:02.5]} 22. Rxd7
{[%clk 0:02:13.9]} 22... Rbd8 {[%clk 0:01:57]} 23. Rd5 {[%clk 0:02:09]} 23...
Rxd5 {[%clk 0:01:55.3]} 24. Bxd5 {[%clk 0:02:08.5]} 24... b6 {[%clk 0:01:52.6]}
25. e4 {[%clk 0:02:08.3]} 25... Kf8 {[%clk 0:01:47.1]} 26. Nb5 {[%clk
0:02:08.3]} 26... a6 {[%clk 0:01:45.9]} 27. Nc7 {[%clk 0:02:07.5]} 27... Re7
{[%clk 0:01:36.8]} 28. a4 {[%clk 0:02:05.5]} 28... Rxc7 {[%clk 0:01:30.5]} 29.
Ne2 {[%clk 0:01:59]} 29... f6 {[%clk 0:01:28.2]} 30. Nc3 {[%clk 0:01:58.6]}
30... Bf7 {[%clk 0:01:27.3]} 31. Kf2 {[%clk 0:01:57.6]} 31... Bxd5 {[%clk
0:01:11.9]} 32. Nxd5 {[%clk 0:01:57.3]} 32... Rb7 {[%clk 0:01:11.7]} 33. Ke3
{[%clk 0:01:56.4]} 33... Kf7 {[%clk 0:01:05.4]} 34. Nb4 {[%clk 0:01:50]} 34...
a5 {[%clk 0:00:59.8]} 35. Nd5 {[%clk 0:01:49.9]} 35... Ke6 {[%clk 0:00:55.3]}
36. Kf3 {[%clk 0:01:49.3]} 36... g5 {[%clk 0:00:54.2]} 37. Ke3 {[%clk
0:01:48.2]} 37... Kf7 {[%clk 0:00:43.3]} 38. Kf3 {[%clk 0:01:47.9]} 38... Ke6
{[%clk 0:00:42.7]} 39. Kg3 {[%clk 0:01:48.2]} 39... Kf7 {[%clk 0:00:41.7]} 40.
h4 {[%clk 0:01:48.4]} 40... Kg6 {[%clk 0:00:31.3]} 41. h5+ {[%clk 0:01:46]}
41... Kf7 {[%clk 0:00:30.6]} 42. Kf3 {[%clk 0:01:46.5]} 42... Ke6 {[%clk
0:00:28.9]} 43. Ke3 {[%clk 0:01:47.1]} 43... Kf7 {[%clk 0:00:25.7]} 44. Kd3
{[%clk 0:01:47.6]} 44... Ke6 {[%clk 0:00:25.4]} 45. Kc3 {[%clk 0:01:47.9]} 45...
Kf7 {[%clk 0:00:24.6]} 46. b4 {[%clk 0:01:48.2]} 46... axb4+ {[%clk 0:00:21.3]}
47. Kxb4 {[%clk 0:01:48.4]} 47... Ke6 {[%clk 0:00:20]} 48. Kb5 {[%clk
0:01:48.8]} 48... Kf7 {[%clk 0:00:15.2]} 49. Nxb6 {[%clk 0:01:48.8]} 49... Ke6
{[%clk 0:00:10.8]} 50. a5 {[%clk 0:01:48.8]} 50... Kd6 {[%clk 0:00:09.2]} 51. a6
{[%clk 0:01:47]} 51... Rb8 {[%clk 0:00:07.6]} 52. a7 {[%clk 0:01:46.2]} 52...
Rh8 {[%clk 0:00:04.1]} 53. a8=Q {[%clk 0:01:45.8]} 53... Rxa8 {[%clk 0:00:03.9]}
54. Nxa8 {[%clk 0:01:45.8]} 54... Kd7 {[%clk 0:00:02.5]} 55. Kc5 {[%clk
0:01:44.4]} 55... Ke7 {[%clk 0:00:02.2]} 56. Kd5 {[%clk 0:01:44.5]} 56... Kd8
{[%clk 0:00:01]} 57. Nb6 {[%clk 0:01:44.9]} 1-0

[Event "Betsys MČR v online bleskovém šachu 2021"]
[Site "Chess.com"]
[Date "2021.04.17"]
[Round "4"]
[White "Joanna23W"]
[Black "Patriktesko"]
[Result "1/2-1/2"]
[WhiteElo "2674"]
[BlackElo "2093"]
[TimeControl "180+1"]
[EndTime "9:36:42 PDT"]
[Termination "Remíza opakováním pozice"]

1. e4 {[%clk 0:03:00.9]} 1... d5 {[%clk 0:02:58.7]} 2. exd5 {[%clk 0:03:00.4]}
2... Qxd5 {[%clk 0:02:59.6]} 3. Nc3 {[%clk 0:03:00.6]} 3... Qd8 {[%clk
0:03:00.5]} 4. d4 {[%clk 0:02:59.6]} 4... Nf6 {[%clk 0:03:00.7]} 5. g3 {[%clk
0:02:56.6]} 5... Bg4 {[%clk 0:02:57]} 6. Qd3 {[%clk 0:02:51.5]} 6... c6 {[%clk
0:02:55.7]} 7. Bg2 {[%clk 0:02:50.4]} 7... e6 {[%clk 0:02:55.5]} 8. Bg5 {[%clk
0:02:42.8]} 8... Be7 {[%clk 0:02:53.8]} 9. h3 {[%clk 0:02:42.7]} 9... Bf5 {[%clk
0:02:53.4]} 10. Qd2 {[%clk 0:02:35.2]} 10... Nbd7 {[%clk 0:02:52.2]} 11. Bf4
{[%clk 0:02:21.1]} 11... Nb6 {[%clk 0:02:48.3]} 12. Nf3 {[%clk 0:02:17.7]} 12...
Nbd5 {[%clk 0:02:43]} 13. O-O {[%clk 0:02:10.6]} 13... Nxf4 {[%clk 0:02:39.9]}
14. Qxf4 {[%clk 0:02:07.7]} 14... Bd6 {[%clk 0:02:38.9]} 15. Qd2 {[%clk
0:02:06.8]} 15... Qc7 {[%clk 0:02:38.1]} 16. Rfe1 {[%clk 0:02:04.2]} 16... O-O-O
{[%clk 0:02:34.7]} 17. Qg5 {[%clk 0:01:58.9]} 17... Bg6 {[%clk 0:02:25.7]} 18.
Ne5 {[%clk 0:01:56.6]} 18... Bxe5 {[%clk 0:02:15.6]} 19. dxe5 {[%clk 0:01:55.7]}
19... Nd5 {[%clk 0:02:15.4]} 20. Nxd5 {[%clk 0:01:44.6]} 20... cxd5 {[%clk
0:02:14.8]} 21. Rac1 {[%clk 0:01:41.9]} 21... Kb8 {[%clk 0:02:14.5]} 22. c4
{[%clk 0:01:33.8]} 22... d4 {[%clk 0:02:04.8]} 23. c5 {[%clk 0:01:23.5]} 23...
d3 {[%clk 0:02:02.3]} 24. Red1 {[%clk 0:01:23.7]} 24... Rd4 {[%clk 0:01:54.3]}
25. c6 {[%clk 0:01:22.3]} 25... b6 {[%clk 0:01:50.9]} 26. h4 {[%clk 0:01:18.4]}
26... h6 {[%clk 0:01:47.4]} 27. Qe3 {[%clk 0:01:17.8]} 27... Rhd8 {[%clk
0:01:46.7]} 28. Rc3 {[%clk 0:01:16.7]} 28... d2 {[%clk 0:01:33]} 29. a3 {[%clk
0:01:13.8]} 29... Bh5 {[%clk 0:01:30.5]} 30. Bf3 {[%clk 0:01:03.7]} 30... Bxf3
{[%clk 0:01:29.4]} 31. Qxf3 {[%clk 0:01:04]} 31... R8d5 {[%clk 0:01:10.1]} 32.
Qe3 {[%clk 0:01:02.4]} 32... Qxe5 {[%clk 0:01:04.1]} 33. c7+ {[%clk 0:01:01.6]}
33... Kc8 {[%clk 0:01:01.8]} 34. Qf3 {[%clk 0:00:58.2]} 34... f5 {[%clk
0:00:44.3]} 35. Qh5 {[%clk 0:00:52.1]} 35... Rc5 {[%clk 0:00:33.3]} 36. Rxc5
{[%clk 0:00:46.2]} 36... bxc5 {[%clk 0:00:30.1]} 37. Qe8+ {[%clk 0:00:45.4]}
37... Kxc7 {[%clk 0:00:29.9]} 38. Qe7+ {[%clk 0:00:45.5]} 38... Kc6 {[%clk
0:00:27.9]} 39. Qe8+ {[%clk 0:00:44.1]} 39... Kc7 {[%clk 0:00:28.2]} 40. Qf7+
{[%clk 0:00:43.2]} 40... Kc6 {[%clk 0:00:28]} 41. Qe8+ {[%clk 0:00:37.1]} 41...
Kc7 {[%clk 0:00:27.4]} 1/2-1/2

[Event "Betsys MČR v online bleskovém šachu 2021"]
[Site "Chess.com"]
[Date "2021.04.17"]
[Round "4"]
[White "Skalicky"]
[Black "Tomasn2003"]
[Result "0-1"]
[WhiteElo "716"]
[BlackElo "1122"]
[TimeControl "180+1"]
[EndTime "9:36:42 PDT"]
[Termination "Uživatel Tomasn2003 zvítězil na čas"]

1. e4 {[%clk 0:03:00.9]} 1... c5 {[%clk 0:02:59.5]} 2. Nf3 {[%clk 0:03:00]} 2...
d6 {[%clk 0:02:59.4]} 3. d4 {[%clk 0:02:59.4]} 3... cxd4 {[%clk 0:02:58.8]} 4.
Nxd4 {[%clk 0:02:59.4]} 4... Nf6 {[%clk 0:02:58.3]} 5. Nc3 {[%clk 0:02:59.4]}
5... g6 {[%clk 0:02:57.5]} 6. Be3 {[%clk 0:02:57.8]} 6... Bg7 {[%clk 0:02:56.8]}
7. f3 {[%clk 0:02:57.2]} 7... O-O {[%clk 0:02:56.4]} 8. Qd2 {[%clk 0:02:56.4]}
8... Nc6 {[%clk 0:02:54.1]} 9. Bc4 {[%clk 0:02:54.2]} 9... a6 {[%clk 0:02:52.6]}
10. Nxc6 {[%clk 0:02:51]} 10... bxc6 {[%clk 0:02:52.8]} 11. O-O-O {[%clk
0:02:46.9]} 11... Bb7 {[%clk 0:02:46.1]} 12. Kb1 {[%clk 0:02:44.8]} 12... d5
{[%clk 0:02:45.7]} 13. exd5 {[%clk 0:02:43.7]} 13... cxd5 {[%clk 0:02:45.7]} 14.
Bb3 {[%clk 0:02:38.5]} 14... e5 {[%clk 0:02:41.6]} 15. Ne2 {[%clk 0:02:27.1]}
15... d4 {[%clk 0:02:40.3]} 16. Bf2 {[%clk 0:02:25.4]} 16... Rc8 {[%clk
0:02:34.5]} 17. Rhe1 {[%clk 0:02:11.5]} 17... e4 {[%clk 0:02:24.2]} 18. Qxd4
{[%clk 0:01:53.3]} 18... exf3 {[%clk 0:02:20.8]} 19. Qxd8 {[%clk 0:01:51]} 19...
Rcxd8 {[%clk 0:02:20.6]} 20. gxf3 {[%clk 0:01:46.7]} 20... Rxd1+ {[%clk
0:02:13.8]} 21. Rxd1 {[%clk 0:01:45.8]} 21... Bxf3 {[%clk 0:02:13.8]} 22. Nd4
{[%clk 0:01:35.1]} 22... Rd8 {[%clk 0:02:10.4]} 23. Kc1 {[%clk 0:01:34]} 23...
Bxd1 {[%clk 0:02:09.2]} 24. Kxd1 {[%clk 0:01:31.3]} 24... Ne4 {[%clk 0:02:07.7]}
25. Be1 {[%clk 0:01:20.4]} 25... Rxd4+ {[%clk 0:02:05.9]} 26. Ke2 {[%clk
0:01:14]} 26... Rd6 {[%clk 0:01:52.7]} 27. Ke3 {[%clk 0:01:09.5]} 27... Ng5
{[%clk 0:01:36]} 28. Bg3 {[%clk 0:01:01.2]} 28... Rb6 {[%clk 0:01:26.4]} 29. a4
{[%clk 0:00:51.3]} 29... Bxb2 {[%clk 0:01:19]} 30. Bf4 {[%clk 0:00:43.2]} 30...
Bc1+ {[%clk 0:01:15.7]} 31. Kd4 {[%clk 0:00:38.5]} 31... Bxf4 {[%clk 0:01:15.4]}
32. Kc5 {[%clk 0:00:37.3]} 32... Be3+ {[%clk 0:01:11.8]} 33. Kc4 {[%clk
0:00:31.4]} 33... Rxb3 {[%clk 0:01:11.6]} 34. Kxb3 {[%clk 0:00:30]} 34... f5
{[%clk 0:01:11.7]} 35. c4 {[%clk 0:00:27.5]} 35... f4 {[%clk 0:01:11.9]} 36. Kc2
{[%clk 0:00:26.7]} 36... f3 {[%clk 0:01:11.9]} 37. Kd3 {[%clk 0:00:24]} 37... f2
{[%clk 0:01:11.9]} 38. Ke2 {[%clk 0:00:23.3]} 38... Ne6 {[%clk 0:01:11.1]} 39.
a5 {[%clk 0:00:20.2]} 39... Nc5 {[%clk 0:01:10.3]} 40. h4 {[%clk 0:00:18.8]}
40... Nb3 {[%clk 0:01:10.1]} 41. Kf1 {[%clk 0:00:11.5]} 41... Nxa5 {[%clk
0:01:09.4]} 42. c5 {[%clk 0:00:05.5]} 42... Nc6 {[%clk 0:01:08.1]} 43. h5 {[%clk
0:00:02.3]} 43... a5 {[%clk 0:01:08.3]} 44. h6 {[%clk 0:00:01.6]} 44... a4
{[%clk 0:01:07.9]} 0-1

[Event "Betsys MČR v online bleskovém šachu 2021"]
[Site "Chess.com"]
[Date "2021.04.17"]
[Round "4"]
[White "Tynano"]
[Black "Honza_13"]
[Result "0-1"]
[WhiteElo "2087"]
[BlackElo "1908"]
[TimeControl "180+1"]
[EndTime "9:36:44 PDT"]
[Termination "Uživatel Honza_13 zvítězil – soupeř opustil hru"]

1. e4 {[%clk 0:03:00.9]} 1... c5 {[%clk 0:02:23.5]} 2. Nf3 {[%clk 0:02:58.7]}
2... Nc6 {[%clk 0:02:20.3]} 3. d4 {[%clk 0:02:58.6]} 3... cxd4 {[%clk
0:02:20.6]} 4. Nxd4 {[%clk 0:02:59.5]} 4... e5 {[%clk 0:02:20.6]} 5. Nb5 {[%clk
0:02:59]} 5... d6 {[%clk 0:02:20.7]} 6. N1c3 {[%clk 0:02:57.5]} 6... a6 {[%clk
0:02:15.4]} 7. Na3 {[%clk 0:02:57.1]} 7... Be7 {[%clk 0:02:15.6]} 8. Nd5 {[%clk
0:02:56.9]} 8... Nf6 {[%clk 0:02:15.2]} 9. Nxe7 {[%clk 0:02:48.5]} 9... Qxe7
{[%clk 0:02:14.8]} 10. Nc4 {[%clk 0:02:48.8]} 10... Nxe4 {[%clk 0:02:07.9]} 11.
f3 {[%clk 0:02:26.8]} 11... Qh4+ {[%clk 0:01:59.2]} 12. g3 {[%clk 0:02:26.6]}
12... Nxg3 {[%clk 0:01:59.1]} 13. hxg3 {[%clk 0:02:26.1]} 13... Qxh1 {[%clk
0:01:45.1]} 14. Nxd6+ {[%clk 0:02:07.1]} 14... Kf8 {[%clk 0:01:31.8]} 15. Be3
{[%clk 0:01:52.6]} 15... Bh3 {[%clk 0:01:15.2]} 16. Kd2 {[%clk 0:00:57]} 16...
Bxf1 {[%clk 0:00:59.6]} 17. Qxf1 {[%clk 0:00:57.9]} 17... Qxf1 {[%clk
0:00:58.9]} 18. Rxf1 {[%clk 0:00:58.8]} 18... Rd8 {[%clk 0:00:59.2]} 19. Bc5
{[%clk 0:00:58.7]} 19... Ke7 {[%clk 0:00:54]} 20. f4 {[%clk 0:00:49.5]} 20...
Rxd6+ {[%clk 0:00:51.8]} 21. Bxd6+ {[%clk 0:00:50.4]} 21... Kxd6 {[%clk
0:00:51.9]} 22. fxe5+ {[%clk 0:00:41.4]} 22... Nxe5 {[%clk 0:00:51.8]} 23. Ke3
{[%clk 0:00:39.2]} 23... Ke6 {[%clk 0:00:40.9]} 24. b3 {[%clk 0:00:37.5]} 24...
b5 {[%clk 0:00:38.6]} 25. Kf4 {[%clk 0:00:32.5]} 25... f6 {[%clk 0:00:32.1]} 26.
Re1 {[%clk 0:00:32.3]} 26... Rc8 {[%clk 0:00:30.1]} 27. Re2 {[%clk 0:00:30.6]}
27... g5+ {[%clk 0:00:27.3]} 28. Ke3 {[%clk 0:00:29.2]} 28... h5 {[%clk
0:00:17.2]} 0-1

[Event "Betsys MČR v online bleskovém šachu 2021"]
[Site "Chess.com"]
[Date "2021.04.17"]
[Round "4"]
[White "Innerz98"]
[Black "Koli05"]
[Result "1-0"]
[WhiteElo "2111"]
[BlackElo "1771"]
[TimeControl "180+1"]
[EndTime "9:36:46 PDT"]
[Termination "Uživatel Innerz98 zvítězil matem"]

1. d4 {[%clk 0:03:00.9]} 1... d5 {[%clk 0:02:59.4]} 2. Bf4 {[%clk 0:02:57]} 2...
e6 {[%clk 0:02:59.1]} 3. e3 {[%clk 0:02:57.1]} 3... c5 {[%clk 0:02:56.5]} 4. Nf3
{[%clk 0:02:56.3]} 4... Nf6 {[%clk 0:02:56.6]} 5. c3 {[%clk 0:02:56.5]} 5... Nc6
{[%clk 0:02:56.3]} 6. Bd3 {[%clk 0:02:56.8]} 6... Nh5 {[%clk 0:02:52.1]} 7. Bg5
{[%clk 0:02:56.2]} 7... f6 {[%clk 0:02:47.9]} 8. Bh4 {[%clk 0:02:55.8]} 8... g6
{[%clk 0:02:46.9]} 9. Nbd2 {[%clk 0:02:51.2]} 9... cxd4 {[%clk 0:02:46.3]} 10.
exd4 {[%clk 0:02:51]} 10... Bg7 {[%clk 0:02:45.5]} 11. O-O {[%clk 0:02:33.6]}
11... O-O {[%clk 0:02:44.1]} 12. Re1 {[%clk 0:02:34]} 12... Qc7 {[%clk
0:02:35.6]} 13. c4 {[%clk 0:02:15.3]} 13... g5 {[%clk 0:02:26.5]} 14. Bg3 {[%clk
0:02:13.8]} 14... Nxg3 {[%clk 0:02:26]} 15. hxg3 {[%clk 0:02:14.7]} 15... g4
{[%clk 0:02:13.8]} 16. Nh2 {[%clk 0:02:13.5]} 16... h5 {[%clk 0:02:13.2]} 17.
Rc1 {[%clk 0:02:08.5]} 17... Qb6 {[%clk 0:02:02.3]} 18. cxd5 {[%clk 0:02:02]}
18... exd5 {[%clk 0:01:57.6]} 19. Nb3 {[%clk 0:02:00.4]} 19... f5 {[%clk
0:01:50]} 20. Rc5 {[%clk 0:01:47.7]} 20... Nxd4 {[%clk 0:01:44.4]} 21. Rxd5
{[%clk 0:01:45.4]} 21... Nxb3 {[%clk 0:01:37.8]} 22. axb3 {[%clk 0:01:46.3]}
22... Be6 {[%clk 0:01:26.3]} 23. Rb5 {[%clk 0:01:37.2]} 23... Qc6 {[%clk
0:01:18.1]} 24. Rxe6 {[%clk 0:01:34]} 24... Qd7 {[%clk 0:00:34.1]} 25. Re1
{[%clk 0:01:28.6]} 25... Kh8 {[%clk 0:00:30]} 26. Bc4 {[%clk 0:01:17.4]} 26...
Qc6 {[%clk 0:00:23.3]} 27. Qd5 {[%clk 0:01:13.8]} 27... a6 {[%clk 0:00:19.8]}
28. Qxc6 {[%clk 0:01:13.2]} 28... bxc6 {[%clk 0:00:19.1]} 29. Rb6 {[%clk
0:01:12.5]} 29... c5 {[%clk 0:00:18.3]} 30. Nf1 {[%clk 0:01:03.7]} 30... Bxb2
{[%clk 0:00:16.3]} 31. Ne3 {[%clk 0:01:03.8]} 31... Bc3 {[%clk 0:00:15.4]} 32.
Rd1 {[%clk 0:01:02.6]} 32... a5 {[%clk 0:00:14.9]} 33. Rh6+ {[%clk 0:00:59]}
33... Kg7 {[%clk 0:00:13]} 34. Rxh5 {[%clk 0:00:59.3]} 34... Kg6 {[%clk
0:00:12.5]} 35. Rh4 {[%clk 0:00:53.3]} 35... Rf6 {[%clk 0:00:11.9]} 36. Nd5
{[%clk 0:00:51]} 36... Rd6 {[%clk 0:00:10.7]} 37. Nf4+ {[%clk 0:00:51]} 37...
Kg5 {[%clk 0:00:08.4]} 38. Rxd6 {[%clk 0:00:51.9]} 38... Bf6 {[%clk 0:00:05]}
39. Rh5# {[%clk 0:00:51]} 1-0

[Event "Betsys MČR v online bleskovém šachu 2021"]
[Site "Chess.com"]
[Date "2021.04.17"]
[Round "4"]
[White "jonvon640"]
[Black "JosefBara"]
[Result "0-1"]
[WhiteElo "1658"]
[BlackElo "1303"]
[TimeControl "180+1"]
[EndTime "9:36:47 PDT"]
[Termination "Uživatel JosefBara zvítězil na čas"]

1. e4 {[%clk 0:03:00.9]} 1... e6 {[%clk 0:03:00.2]} 2. d4 {[%clk 0:02:59.8]}
2... d5 {[%clk 0:03:00.6]} 3. exd5 {[%clk 0:03:00.4]} 3... exd5 {[%clk
0:03:00.5]} 4. Bd3 {[%clk 0:02:57.5]} 4... Nf6 {[%clk 0:03:00.6]} 5. c3 {[%clk
0:02:56.6]} 5... Be7 {[%clk 0:02:58.8]} 6. Bf4 {[%clk 0:02:53.3]} 6... O-O
{[%clk 0:02:58]} 7. Nd2 {[%clk 0:02:51.8]} 7... Bg4 {[%clk 0:02:57.2]} 8. f3
{[%clk 0:02:50.6]} 8... Bh5 {[%clk 0:02:56.9]} 9. Ne2 {[%clk 0:02:49.2]} 9... c6
{[%clk 0:02:52.4]} 10. O-O {[%clk 0:02:45.9]} 10... Nbd7 {[%clk 0:02:51.9]} 11.
Ng3 {[%clk 0:02:42.3]} 11... Bg6 {[%clk 0:02:51.1]} 12. Qc2 {[%clk 0:02:41]}
12... Bxd3 {[%clk 0:02:50.5]} 13. Qxd3 {[%clk 0:02:40.4]} 13... Qb6 {[%clk
0:02:44.4]} 14. b3 {[%clk 0:02:36.6]} 14... c5 {[%clk 0:02:44]} 15. Nf5 {[%clk
0:02:20.6]} 15... Bd8 {[%clk 0:02:32]} 16. Kh1 {[%clk 0:02:00]} 16... cxd4
{[%clk 0:02:30.7]} 17. Qxd4 {[%clk 0:01:53]} 17... Qxd4 {[%clk 0:02:27.7]} 18.
Nxd4 {[%clk 0:01:52.1]} 18... Bb6 {[%clk 0:02:27]} 19. Rac1 {[%clk 0:01:47]}
19... Rac8 {[%clk 0:02:23.9]} 20. Rfe1 {[%clk 0:01:41.3]} 20... h6 {[%clk
0:02:21.5]} 21. b4 {[%clk 0:01:36.3]} 21... a6 {[%clk 0:02:11.7]} 22. N2b3
{[%clk 0:01:34.3]} 22... Rfe8 {[%clk 0:02:02]} 23. Bd2 {[%clk 0:01:15.8]} 23...
Rxe1+ {[%clk 0:01:55]} 24. Rxe1 {[%clk 0:01:14.4]} 24... Bxd4 {[%clk 0:01:45.8]}
25. Nxd4 {[%clk 0:01:13.5]} 25... Nb6 {[%clk 0:01:41.5]} 26. Nf5 {[%clk
0:01:09.8]} 26... Nc4 {[%clk 0:01:40.1]} 27. Ne7+ {[%clk 0:01:08.9]} 27... Kh8
{[%clk 0:01:34.5]} 28. Nxc8 {[%clk 0:01:06.9]} 28... Nxd2 {[%clk 0:01:34]} 29.
Re7 {[%clk 0:00:54.9]} 29... Kg8 {[%clk 0:01:31.4]} 30. Rxb7 {[%clk 0:00:51.9]}
30... Nc4 {[%clk 0:01:29.8]} 31. Nb6 {[%clk 0:00:45.2]} 31... Ne3 {[%clk
0:01:27]} 32. Ra7 {[%clk 0:00:42.2]} 32... Nh5 {[%clk 0:01:23.5]} 33. Rxa6
{[%clk 0:00:41]} 33... Nf4 {[%clk 0:01:22.9]} 34. Nd7 {[%clk 0:00:34.5]} 34...
Nfxg2 {[%clk 0:01:21.5]} 35. Ra8+ {[%clk 0:00:28.8]} 35... Kh7 {[%clk
0:01:20.8]} 36. Nf8+ {[%clk 0:00:27.9]} 36... Kg8 {[%clk 0:01:16.7]} 37. b5
{[%clk 0:00:20.5]} 37... g6 {[%clk 0:01:13.4]} 38. b6 {[%clk 0:00:17.9]} 38...
Nf4 {[%clk 0:01:09.5]} 39. b7 {[%clk 0:00:16.6]} 39... Nh3 {[%clk 0:01:05.5]}
40. Nxg6+ {[%clk 0:00:09.5]} 40... Kg7 {[%clk 0:01:03.8]} 41. Rg8+ {[%clk
0:00:04.2]} 41... Kxg8 {[%clk 0:01:01.3]} 42. b8=Q+ {[%clk 0:00:03.7]} 42... Kg7
{[%clk 0:01:01.5]} 43. Qg3 {[%clk 0:00:01.1]} 43... fxg6 {[%clk 0:00:59.6]} 0-1

[Event "Betsys MČR v online bleskovém šachu 2021"]
[Site "Chess.com"]
[Date "2021.04.17"]
[Round "4"]
[White "Kamilotka"]
[Black "malviny"]
[Result "1/2-1/2"]
[WhiteElo "1633"]
[BlackElo "1169"]
[TimeControl "180+1"]
[EndTime "9:36:47 PDT"]
[Termination "Remíza opakováním pozice"]

1. e4 {[%clk 0:03:00.9]} 1... e5 {[%clk 0:03:00.2]} 2. d4 {[%clk 0:03:00.3]}
2... exd4 {[%clk 0:02:59.8]} 3. Bc4 {[%clk 0:03:00.2]} 3... d6 {[%clk
0:02:56.7]} 4. Qxd4 {[%clk 0:02:57.9]} 4... Be6 {[%clk 0:02:55.6]} 5. Bxe6
{[%clk 0:02:56.8]} 5... Nc6 {[%clk 0:02:51.6]} 6. Bxf7+ {[%clk 0:02:50.5]} 6...
Kxf7 {[%clk 0:02:48]} 7. Qc4+ {[%clk 0:02:49.3]} 7... Ke8 {[%clk 0:02:46.6]} 8.
Nc3 {[%clk 0:02:48.4]} 8... Qe7 {[%clk 0:02:43.7]} 9. Nf3 {[%clk 0:02:44.5]}
9... Nf6 {[%clk 0:02:36.7]} 10. O-O {[%clk 0:02:43.6]} 10... Ne5 {[%clk
0:02:31.7]} 11. Nxe5 {[%clk 0:02:40.6]} 11... dxe5 {[%clk 0:02:31.9]} 12. Qb5+
{[%clk 0:02:32.2]} 12... c6 {[%clk 0:02:30.8]} 13. Qe2 {[%clk 0:02:27]} 13...
Rd8 {[%clk 0:02:30]} 14. Bg5 {[%clk 0:02:25.9]} 14... h6 {[%clk 0:02:29.1]} 15.
Bh4 {[%clk 0:02:25.4]} 15... g5 {[%clk 0:02:28.5]} 16. Bg3 {[%clk 0:02:25.3]}
16... Bg7 {[%clk 0:02:23.1]} 17. Rfd1 {[%clk 0:02:24.8]} 17... Kf7 {[%clk
0:02:22.2]} 18. Qc4+ {[%clk 0:02:22.9]} 18... Kg6 {[%clk 0:02:19.2]} 19. h4
{[%clk 0:02:05.8]} 19... Rhe8 {[%clk 0:02:14.6]} 20. Qe2 {[%clk 0:02:03.7]}
20... Nh5 {[%clk 0:02:07.8]} 21. hxg5 {[%clk 0:01:50.5]} 21... Qxg5 {[%clk
0:02:06.2]} 22. Bh2 {[%clk 0:01:37.7]} 22... Rf8 {[%clk 0:01:55.7]} 23. Rxd8
{[%clk 0:01:35]} 23... Rxd8 {[%clk 0:01:51.6]} 24. Rd1 {[%clk 0:01:33.4]} 24...
Rxd1+ {[%clk 0:01:50.2]} 25. Qxd1 {[%clk 0:01:33.1]} 25... Nf4 {[%clk
0:01:43.1]} 26. Bxf4 {[%clk 0:01:32.1]} 26... Qxf4 {[%clk 0:01:40.7]} 27. f3
{[%clk 0:01:20.9]} 27... Qe3+ {[%clk 0:01:38.9]} 28. Kf1 {[%clk 0:01:17.7]}
28... Qg5 {[%clk 0:01:33.6]} 29. Qd6+ {[%clk 0:01:15.6]} 29... Kh5 {[%clk
0:01:30.7]} 30. g4+ {[%clk 0:01:12.4]} 30... Kh4 {[%clk 0:01:29.3]} 31. Qd1
{[%clk 0:01:08.7]} 31... Qf4 {[%clk 0:01:24.7]} 32. Qe1+ {[%clk 0:01:04.8]}
32... Kg5 {[%clk 0:01:23.8]} 33. Qd1 {[%clk 0:00:55.3]} 33... Qe3 {[%clk
0:01:19]} 34. Kg2 {[%clk 0:00:34]} 34... Kh4 {[%clk 0:01:09.3]} 35. Qh1+ {[%clk
0:00:32.6]} 35... Kg5 {[%clk 0:01:08.8]} 36. Qh5+ {[%clk 0:00:29.2]} 36... Kf6
{[%clk 0:01:02.5]} 37. Qf5+ {[%clk 0:00:19.6]} 37... Ke7 {[%clk 0:01:01.4]} 38.
Qg6 {[%clk 0:00:16]} 38... Qd2+ {[%clk 0:00:58.6]} 39. Kg3 {[%clk 0:00:13]}
39... Qe1+ {[%clk 0:00:55.3]} 40. Kg2 {[%clk 0:00:12.4]} 40... Qd2+ {[%clk
0:00:54.5]} 41. Kg3 {[%clk 0:00:11]} 41... Qf4+ {[%clk 0:00:53.5]} 42. Kg2
{[%clk 0:00:10.5]} 42... Qd2+ {[%clk 0:00:51.6]} 1/2-1/2